lending/lending_fUSD_20241113
["ID","MTS","AMOUNT","RATE_DAILY","PERIOD"]
[342150682,1731510638344,-97936.76089042,0.00013,2]
[342150683,1731510638372,-14578.12288679,0.00013,2]
[342150684,1731510638387,-5008.57317313,0.00013,2]
[342150685,1731510638399,-2768.60810481,0.00013,2]
[342150686,1731510638411,-243144.94672552,0.00013,2]
[342150687,1731510638423,-428.73,0.00013,2]
[342152102,1731510664271,-9408.91420935,0.00013,2]
[342152103,1731510664311,-875.73694096,0.00013,2]
[342152104,1731510664323,-850.81000002,0.00013,2]
[342152105,1731510664527,-1824.29585,0.00013,2]
[342152106,1731510664541,-1575.15889195,0.00013,2]
[342152107,1731510664588,-901.4202829,0.00013,2]
[342152108,1731510664668,-1698.27979615,0.00013,2]
[342152109,1731510664679,-779.26277899,0.00013,2]
[342152110,1731510664691,-4125.78510001,0.00013,2]
[342152111,1731510664711,-1521.32818481,0.00013,2]
[342152112,1731510664723,-403.3655208,0.00013,2]
[342152113,1731510664735,-66916.45448696,0.00013,2]
[342152114,1731510664774,-978.9,0.00013,2]
[342152115,1731510664785,-606.0,0.00013,2]
[342152116,1731510664796,-414.28,0.00013,2]
[342152117,1731510664808,-2119.1,0.00013,2]
[342152118,1731510664819,-1438.89368145,0.00013,2]
[342152119,1731510664830,-955.48086491,0.00013,2]
[342152120,1731510664841,-463.2913607,0.00013,2]
[342152121,1731510665372,-150.01,0.00012999,2]
[342152122,1731510665381,-8648.01859357,0.00013,2]
[342152123,1731510665393,-6365.26780773,0.00013,2]
[342152124,1731510665408,-62386.46893027,0.00013,2]
[342152125,1731510665443,-13240.30982234,0.00013,2]
[342152126,1731510665455,-3187.54244443,0.00013,2]
[342152127,1731510665466,-6311.62466157,0.00013,2]
[342152128,1731510665477,-478.15724251,0.00013,2]
[342152129,1731510665508,-5867.31357,0.00013,2]
[342152130,1731510665519,-14576.90748687,0.00013,2]
[342152131,1731510665530,-594197.5,0.00013,2]
[342152132,1731510665541,-608.2999995,0.00013,2]
[342152133,1731510665552,-1355.53075,0.00013,2]
[342152134,1731510665563,-3318.80000001,0.00013,2]
[342152135,1731510665574,-648.0,0.00013,2]
[342152136,1731510665589,-31433.39472166,0.00013,2]
[342152137,1731510665600,-44292.78554808,0.00013,2]
[342152138,1731510665611,-30662.02616391,0.00013,2]
[342152139,1731510665620,-16750.64089301,0.00013,2]
[342152140,1731510665631,-485.00919869,0.00013,2]
[342152141,1731510665642,-710.21605761,0.00013,2]
[342152142,1731510665656,-906.17357973,0.00013,2]
[342152143,1731510665667,-17002.54951436,0.00013,2]
[342152144,1731510665697,-183076.39250979,0.00013,2]
[342152145,1731510665840,-4381.30840874,0.00013,2]
[342152146,1731510665851,-1594.9864819,0.00013,2]
[342152147,1731510666102,-200.0,0.000129,2]
[342152148,1731510666113,-90975.0,0.00013,2]
[342152149,1731510666125,-691.07632001,0.00013,2]
[342152150,1731510666136,-12946.71892152,0.00013,2]
[342152151,1731510666147,-4165.5827332,0.00013,2]
[342152152,1731510666164,-91699.96000008,0.00013,2]
[342152153,1731510666175,-304.58000004,0.00013,2]
[342152154,1731510666186,-603.54999,0.00013,2]
[342152155,1731510666201,-701.4186,0.00013,2]
[342152156,1731510666213,-2286.21806856,0.00013,2]
[342152157,1731510666231,-45773.1805707,0.00013,2]
[342152158,1731510666243,-903.3105205,0.00013,2]
[342152159,1731510666254,-2725.37122204,0.00013,2]
[342152160,1731510666266,-55019.64575701,0.00013,2]
[342152161,1731510666277,-90806.5688805,0.00013,2]
[342152162,1731510666287,-500.0,0.00013,2]
[342152163,1731510666298,-4554.49995,0.00013,2]
[342152164,1731510666309,-534.82006732,0.00013,2]
[342152165,1731510666558,-144.41831402,0.00013,2]
[342152166,1731510666569,-1371.84,0.00013,2]
[342152167,1731510666598,-303.6,0.00013,2]
[342152168,1731510666610,-37334.15408338,0.00013,2]
[342152169,1731510666622,-46845.12195568,0.00013,2]
[342152170,1731510666634,-29264.77551568,0.00013,2]
[342152171,1731510666645,-1652.15,0.00013,2]
[342152172,1731510666951,-121347.55224838,0.00013,2]
[342152173,1731510678681,1102.41906957,0.00027,60]
[342152174,1731510796123,500.0,0.00024777,120]
[342152175,1731510796538,500.0,0.00025673,120]
[342152176,1731510796888,500.0,0.00026569,120]
[342152177,1731510806861,2000.0,0.0002518,120]
[342152178,1731510807278,2000.0,0.00025829,120]
[342152179,1731510807666,2000.0,0.00026479,120]
[342152180,1731510808113,2000.0,0.00026999,120]
[342152181,1731510828889,500.0,0.00025071,120]
[342152182,1731510829351,500.0,0.00026262,120]
[342152183,1731510837719,200.0,0.00025071,120]
[342152184,1731510838115,200.0,0.00026262,120]
[342152185,1731510874706,331.12,0.00027,60]
[342152189,1731511071159,3331.0,0.00027,60]
[342152190,1731511395776,500.0,0.00024857,120]
[342152191,1731511396214,500.0,0.00025833,120]
[342152192,1731511396612,500.0,0.00026809,120]
[342152193,1731511403603,2000.0,0.00025245,120]
[342152194,1731511404447,2000.0,0.00025928,120]
[342152195,1731511404874,2000.0,0.0002661,120]
[342152196,1731511423083,500.0,0.00025146,120]
[342152197,1731511423139,500.0,0.00026412,120]
[342152198,1731511431194,200.0,0.00025216,120]
[342152199,1731511431575,200.0,0.00026552,120]
[342152200,1731511526899,1019.20511913,0.00025,60]
[342152203,1731511563434,1500.0,0.00025,120]
[342152204,1731511573937,940.09,0.00016658,30]
[342152205,1731511616091,-194.77939827,9e-05,2]
[342152206,1731511623894,175.0,0.00027,60]
[342152207,1731511672256,263.14747249,0.00025,120]
[342152208,1731511718897,638.97440232,0.00025,120]
[342152209,1731511719955,675.28550814,0.00027,120]
[342152210,1731511721481,508.98546003,0.00027,120]
[342152211,1731511723878,2042.94403354,0.00027,60]
[342152213,1731511726205,2000.0,0.00027,120]
[342152227,1731511752424,-3273.6119658,9e-05,2]
[342152228,1731511761080,-2693.4,9.413e-05,2]
[342152231,1731511768083,-150.0,9.899e-05,2]
[342152232,1731511768114,-1133.78513848,9.9e-05,2]
[342152246,1731511832265,-105.74296152,9.9e-05,2]
[342152247,1731511832275,-201757.52062043,9.9e-05,2]
[342152248,1731511832284,-465.80789122,9.973e-05,2]
[342152249,1731511832295,-500.0,9.973e-05,2]
[342152250,1731511832304,-3995.216787,0.0001,2]
[342152251,1731511832317,-659218.22596854,0.0001,2]
[342152252,1731511832342,-3473.37189614,0.0001,2]
[342152253,1731511832426,-137165.80718699,0.0001,2]
[342152254,1731511832438,-5391.0768465,0.0001,2]
[342152255,1731511832514,-3073.70583208,0.0001,2]
[342152256,1731511832527,-3668.00107363,0.0001,2]
[342152257,1731511832615,-791.73591754,0.0001,2]
[342152258,1731511832632,-295.44814184,0.0001,2]
[342152259,1731511832649,-364.29929242,0.0001,2]
[342152260,1731511832662,-329869.74903301,0.0001,2]
[342152261,1731511832773,-6580.0,0.0001,2]
[342152262,1731511832784,-262.48322908,0.0001,2]
[342152264,1731511832796,-1428.30294052,0.0001,2]
[342152266,1731511832808,-6905.68196165,0.0001,2]
[342152268,1731511832819,-2051.230272,0.0001,2]
[342152281,1731511838322,-698.5184094,0.0001,2]
[342152282,1731511838334,-2618425.68139569,0.0001,2]
[342152283,1731511838347,-4525.04866812,0.0001,2]
[342152284,1731511838358,-98906.79117657,0.0001,2]
[342152285,1731511838384,-4998.2244,0.0001,2]
[342152286,1731511838401,-4599.18,0.0001,2]
[342152287,1731511838412,-2825.3799,0.0001,2]
[342152288,1731511838520,-1465.18395285,0.0001,2]
[342152289,1731511838589,-2674.07906276,0.0001,2]
[342152416,1731511840247,-920.79448274,0.0001,2]
[342152429,1731511840359,-844.42,0.0001,2]
[342152431,1731511840371,-182204.85287229,0.0001,2]
[342152433,1731511840385,-1705.36745713,0.0001,2]
[342152435,1731511840402,-275.7,0.0001,2]
[342152442,1731511840457,-803.74940594,0.0001,2]
[342152445,1731511840468,-3966.11640005,0.0001,2]
[342152447,1731511840479,-5331.93432331,0.0001,2]
[342152449,1731511840490,-3673.2765684,0.0001,2]
[342152451,1731511840502,-1421.9,0.0001,2]
[342152453,1731511840513,-328.68,0.0001,2]
[342152455,1731511840524,-536.25,0.0001,2]
[342152458,1731511840536,-687.64,0.0001,2]
[342152460,1731511840548,-895.04,0.0001,2]
[342152742,1731511843355,-6852.43576846,0.0001,2]
[342152744,1731511843367,-10258.15569758,0.0001,2]
[342152746,1731511843380,-3403.92661886,0.0001,2]
[342152750,1731511843414,-1836.22,0.0001,2]
[342152757,1731511843467,-4998.17488479,0.0001,2]
[342152759,1731511843479,-1559.7799707,0.0001,2]
[342152764,1731511843517,-12358.25952686,0.0001,2]
[342152766,1731511843529,-108303.62999999,0.0001,2]
[342152769,1731511843540,-444.40410875,0.0001,2]
[342153138,1731511847058,-2781.24026881,0.0001,2]
[342153140,1731511847070,-328.776,0.0001,2]
[342153142,1731511847082,-417.93,0.0001,2]
[342153145,1731511847094,-383124.09241748,0.0001,2]
[342153147,1731511847106,-91658.08128047,0.0001,2]
[342153149,1731511847121,-9138.7,0.0001,2]
[342153151,1731511847132,-1952.41640053,0.0001,2]
[342153154,1731511847151,-454.1599242,0.0001,2]
[342153156,1731511847162,-1060.21728667,0.0001,2]
[342153163,1731511847220,-557.46150323,0.0001,2]
[342153165,1731511847232,-9029.99198284,0.0001,2]
[342153168,1731511847247,-11520.71781945,0.0001,2]
[342153170,1731511847258,-27526.54320002,0.0001,2]
[342153172,1731511847269,-6529.80190714,0.0001,2]
[342153174,1731511847281,-609.7094295,0.0001,2]
[342153177,1731511847293,-342.5,0.0001,2]
[342153649,1731511871744,-40000.0,0.0001,2]
[342153650,1731511996180,500.0,0.00024968,120]
[342153651,1731511996218,500.0,0.00026056,120]
[342153652,1731511996367,500.0,0.00026999,120]
[342153653,1731511998124,500.0,0.00027,60]
[342153654,1731512017155,2000.0,0.00025303,120]
[342153655,1731512017876,2000.0,0.00026015,120]
[342153656,1731512019927,2000.0,0.00026726,120]
[342153657,1731512045463,200.0,0.00025441,120]
[342153658,1731512045892,200.0,0.00026999,120]
[342153659,1731512104625,608.82,0.00026986,120]
[342153661,1731512117964,4892.0,0.00027,60]
[342153662,1731512127689,2000.03,0.00027,60]
[342153668,1731512323687,2000.0,0.00027,60]
[342153669,1731512337368,500.0,0.00027,60]
[342153670,1731512349784,893.08,0.00016658,30]
[342153671,1731512358638,500.0,0.00027,60]
[342153673,1731512382324,498.0,0.00027,60]
[342153674,1731512418085,249.0,0.00027,60]
[342153675,1731512456828,249.0,0.00027,60]
[342153676,1731512597016,500.0,0.00025137,120]
[342153677,1731512597489,500.0,0.00026394,120]
[342153678,1731512603645,2000.0,0.00025371,120]
[342153679,1731512605496,2000.0,0.00026116,120]
[342153680,1731512605554,2000.0,0.00026862,120]
[342153681,1731512620010,500.0,0.00025239,120]
[342153682,1731512620388,500.0,0.00026597,120]
[342153683,1731512628668,200.0,0.00025613,120]
[342153684,1731512628764,200.0,0.00026999,120]
[342153687,1731512680097,-9550.60810367,8.219e-05,2]
[342153688,1731512680127,-2558.73,8.219e-05,2]
[342153689,1731512680154,-157.59,8.219e-05,2]
[342153690,1731512680181,-19427.103438,8.684e-05,2]
[342153691,1731512680207,-3216.01205288,8.728e-05,2]
[342153692,1731512680233,-7917.99,8.728e-05,2]
[342153693,1731512680260,-789.96640545,8.728e-05,2]
[342153946,1731512797087,5000.0,0.00027,60]
[342153948,1731512903797,500.0,0.00027,120]
[342153949,1731512914599,500.0,0.00027,120]
[342153951,1731512951120,-2649.73,8.219e-05,2]
[342153952,1731512951141,-352.41033,8.44e-05,2]
[342153954,1731512968123,-152.95,8.368e-05,2]
[342153955,1731512968147,-152.95,8.373e-05,2]
[342153956,1731512968171,-152.95,8.378e-05,2]
[342153957,1731512968194,-152.95,8.384e-05,2]
[342153958,1731512968218,-152.95,8.389e-05,2]
[342153959,1731512968241,-152.95,8.394e-05,2]
[342153960,1731512968264,-430.42,8.397e-05,2]
[342153961,1731512968289,-152.95,8.399e-05,2]
[342153962,1731512968318,-152.95,8.405e-05,2]
[342153963,1731512968343,-152.95,8.41e-05,2]
[342153964,1731512968364,-1500.00967,8.44e-05,2]
[342153965,1731512968386,-2000.0,8.452e-05,2]
[342153966,1731512968408,-500.0,8.543e-05,2]
[342153967,1731512968432,-300.0,8.565e-05,2]
[342153968,1731512968453,-4623.01,8.566e-05,2]
[342153969,1731512968475,-2831.67,8.566e-05,2]
[342153970,1731512968497,-1000.0,8.588e-05,2]
[342153971,1731512968524,-897.25,8.598e-05,2]
[342153972,1731512968555,-200.0,8.611e-05,2]
[342153973,1731512968583,-23110.03359455,8.728e-05,2]
[342153974,1731512968608,-1000.0,8.76e-05,2]
[342153975,1731512968632,-5428.93,8.761e-05,2]
[342153976,1731512968659,-1698.93,8.764e-05,2]
[342153977,1731512968688,-150.0,8.766e-05,2]
[342153978,1731512968715,-4706.52,8.767e-05,2]
[342153979,1731512968740,-3548.48,8.767e-05,2]
[342153980,1731512968768,-11354.21,8.767e-05,2]
[342153981,1731512968798,-161.81,8.77e-05,2]
[342153982,1731512968823,-812.26,8.77e-05,2]
[342153983,1731512968849,-151.22,8.775e-05,2]
[342153984,1731512968873,-200.0,8.789e-05,2]
[342153985,1731512968897,-150.0,8.795e-05,2]
[342153986,1731512968920,-8160.82153683,8.816e-05,2]
[342154007,1731513032541,-1244.84,8.75e-05,2]
[342154008,1731513032551,-3510.78,8.761e-05,2]
[342154009,1731513032562,-300.0,8.815e-05,2]
[342154010,1731513032577,-1000.0,8.815e-05,2]
[342154011,1731513032587,-4107.11096,8.816e-05,2]
[342154012,1731513032598,-6543.410145,8.816e-05,2]
[342154013,1731513032610,-2503.09820368,8.816e-05,2]
[342154014,1731513032621,-32043.83915449,8.816e-05,2]
[342154015,1731513032631,-250.0,8.826e-05,2]
[342154016,1731513032640,-166.85,8.891e-05,2]
[342154017,1731513032650,-2153.38,8.913e-05,2]
[342154018,1731513032659,-1981.0,9.305e-05,2]
[342154019,1731513032670,-151.22,9.323e-05,2]
[342154020,1731513032679,-430.42,9.447e-05,2]
[342154021,1731513032693,-255.0,9.643e-05,2]
[342154022,1731513032703,-1000.0,9.661e-05,2]
[342154023,1731513032712,-154.21,9.663e-05,2]
[342154024,1731513032722,-154.21,9.665e-05,2]
[342154025,1731513032732,-154.21,9.668e-05,2]
[342154026,1731513032741,-1340.11,9.67e-05,2]
[342154027,1731513032751,-8667.25,9.67e-05,2]
[342154028,1731513032762,-824.27,9.67e-05,2]
[342154029,1731513032771,-1501.61,9.67e-05,2]
[342154030,1731513032782,-6145.75,9.67e-05,2]
[342154031,1731513032791,-150.99,9.67e-05,2]
[342154032,1731513032800,-676.94,9.67e-05,2]
[342154033,1731513032810,-499.99,9.67e-05,2]
[342154034,1731513032819,-154.21,9.671e-05,2]
[342154035,1731513032832,-154.21,9.673e-05,2]
[342154036,1731513032841,-154.21,9.676e-05,2]
[342154037,1731513032851,-154.21,9.679e-05,2]
[342154038,1731513032859,-154.21,9.681e-05,2]
[342154039,1731513032869,-154.21,9.684e-05,2]
[342154040,1731513032878,-154.21,9.687e-05,2]
[342154041,1731513032888,-154.21,9.69e-05,2]
[342154042,1731513032898,-154.21,9.692e-05,2]
[342154043,1731513032908,-154.21,9.695e-05,2]
[342154044,1731513032917,-420.0,9.697e-05,2]
[342154046,1731513032926,-154.21,9.698e-05,2]
[342154048,1731513032936,-154.21,9.7e-05,2]
[342154050,1731513032945,-154.21,9.703e-05,2]
[342154052,1731513032955,-154.21,9.706e-05,2]
[342154055,1731513032964,-154.21,9.708e-05,2]
[342154058,1731513032974,-154.21,9.711e-05,2]
[342154060,1731513032983,-21727.7034,9.8e-05,2]
[342154064,1731513032993,-151.22,9.872e-05,2]
[342154067,1731513033003,-14712.5498,9.9e-05,2]
[342154069,1731513033012,-30898.2086,9.9e-05,2]
[342154072,1731513033022,-9119.3095,9.9e-05,2]
[342154075,1731513033032,-600.0,9.9e-05,3]
[342154078,1731513033041,-32072.9952,9.9e-05,2]
[342154082,1731513033052,-400.0,9.9e-05,3]
[342154085,1731513033062,-273.83959699,9.973e-05,2]
[342154088,1731513033076,-130.54022436,9.973e-05,2]
[342154100,1731513033137,-25.74565264,9.973e-05,2]
[342154103,1731513033148,-127.76077493,9.973e-05,2]
[342154117,1731513033270,-372.23922507,9.973e-05,2]
[342154119,1731513033280,-556.00568647,9.973e-05,2]
[342154121,1731513033291,-500.0,9.973e-05,2]
[342154123,1731513033301,-503.57929234,9.973e-05,2]
[342154125,1731513033311,-500.43514332,9.973e-05,2]
[342154128,1731513033325,-408.98927631,9.973e-05,2]
[342154130,1731513033335,-2238.32070273,9.99e-05,2]
[342154132,1731513033345,-1000.0,9.999e-05,2]
[342154133,1731513033355,-748.05961709,9.999e-05,2]
[342154136,1731513033365,-588.76240377,9.999e-05,2]
[342154137,1731513033375,-196.20746521,0.0001,2]
[342154139,1731513033386,-10855.84310869,0.0001,2]
[342154142,1731513033398,-8808.09817902,0.0001,2]
[342154144,1731513033410,-32302.21698633,0.0001,2]
[342154146,1731513033422,-4827.00000007,0.0001,2]
[342154149,1731513033436,-459672.11187222,0.0001,2]
[342154151,1731513033447,-1854.29253198,0.0001,2]
[342154153,1731513033459,-2498.68,0.0001,2]
[342154160,1731513033519,-7779.96732424,0.0001,2]
[342154162,1731513033531,-386733.4294085,0.0001,2]
[342154196,1731513038608,-2125.89880696,8.745e-05,2]
[342154197,1731513038621,-1450.00119304,8.745e-05,2]
[342154198,1731513038631,-1532.03274203,0.0001,2]
[342154199,1731513038643,-5225.4863715,0.0001,2]
[342154200,1731513038993,-1670.07499393,0.0001,2]
[342154225,1731513040606,-850.596,0.0001,2]
[342154226,1731513040619,-1229.3169989,0.0001,2]
[342154227,1731513040631,-1994.37105779,0.0001,2]
[342154228,1731513040643,-2199.5,0.0001,2]
[342154229,1731513040655,-1571.17862333,0.0001,2]
[342154230,1731513040706,-1068.05437694,0.0001,2]
[342154231,1731513040718,-6243.77555678,0.0001,2]
[342154232,1731513040729,-1486.71128,0.0001,2]
[342154233,1731513041139,-566.3164432,0.0001,2]
[342154234,1731513041151,-2894.20174678,0.0001,2]
[342154235,1731513041166,-373.595,0.0001,2]
[342154236,1731513041203,-2281.33979502,0.0001,2]
[342154237,1731513041215,-5501.50579698,0.0001,2]
[342154238,1731513041226,-18450.19261449,0.0001,2]
[342154480,1731513044004,-4534.0315421,0.0001,2]
[342154481,1731513044017,-379.3881618,0.0001,2]
[342154482,1731513044028,-8749.42227822,0.0001,2]
[342154483,1731513044116,-27756.00000001,0.0001,2]
[342154720,1731513046492,-950.9715036,0.0001,2]
[342154723,1731513046505,-708.536,0.0001,2]
[342154727,1731513046517,-4833.89999999,0.0001,2]
[342154730,1731513046529,-388.07539981,0.0001,2]
[342154761,1731513046727,-666.09689906,0.0001,2]
[342154763,1731513046742,-4570.21565,0.0001,2]
[342154765,1731513046754,-18533.09219998,0.0001,2]
[342154767,1731513046766,-740.63832,0.0001,2]
[342154769,1731513046778,-46908.84846196,0.0001,2]
[342154774,1731513046829,-18296.4,0.0001,2]
[342154776,1731513046846,-1695.01661292,0.0001,2]
[342154778,1731513046858,-3298.1,0.0001,2]
[342154781,1731513046870,-15240.94294236,0.0001,2]
[342154783,1731513046884,-34450.06387207,0.0001,2]
[342154788,1731513046928,-751.80259802,0.0001,2]
[342155581,1731513071915,150.0,5.236e-05,2]
[342155582,1731513071939,28.0,5.236e-05,2]
[342155583,1731513107038,5237.88,0.00027,60]
[342155584,1731513130670,150.0,5.236e-05,2]
[342155585,1731513130692,6.0,5.236e-05,2]
[342155586,1731513134683,848.42,0.00016658,30]
[342155587,1731513191260,150.0,5.236e-05,2]
[342155588,1731513191283,43.0,5.236e-05,2]
[342155589,1731513197419,500.0,0.00024738,120]
[342155590,1731513197817,500.0,0.00026062,120]
[342155592,1731513204847,2000.0,0.00024738,120]
[342155593,1731513205716,2000.0,0.00025463,120]
[342155594,1731513206160,2000.0,0.00026189,120]
[342155595,1731513206549,2000.0,0.00026914,120]
[342155596,1731513224439,500.0,0.00026838,120]
[342155597,1731513227673,255.343266,0.00024738,120]
[342155598,1731513244525,800.0,0.00026904,120]
[342155599,1731513342968,5029.00068445,0.00027,60]
[342155600,1731513363140,273.0,0.00027,60]
[342155601,1731513363682,155.365,0.0002335,60]
[342155603,1731513387521,4678.69,0.00027,60]
[342155607,1731513593960,932.1583818,0.00027,60]
[342155608,1731513760864,1055.20451854,0.00027,60]
[342155609,1731513796075,500.0,0.00024738,120]
[342155610,1731513796122,500.0,0.00026338,120]
[342155611,1731513798746,2000.0,0.00024738,120]
[342155612,1731513799139,2000.0,0.00025526,120]
[342155613,1731513799536,2000.0,0.00026314,120]
[342155614,1731513799957,2000.0,0.00026999,120]
[342155615,1731513811259,500.0,0.00025992,120]
[342155616,1731513853598,800.0,0.00026986,120]
[342155617,1731513973724,-5234.58682648,0.00015,14]
[342155618,1731513990981,-933.0,0.000165,27]
[342155619,1731513991005,-1800.0,0.00017,18]
[342155640,1731514010333,-1000.0,0.000148,6]
[342155641,1731514010371,-15822.90162696,0.00014975,5]
[342155643,1731514044912,-872.4,0.000152,8]
[342155644,1731514044945,-49337.11154656,0.000163,5]
[342155651,1731514164020,805.99,0.00016658,30]
[342155654,1731514230375,-300.0,8.151e-05,2]
[342155655,1731514230400,-15978.03,8.152e-05,2]
[342155656,1731514230425,-13104.28104336,8.152e-05,2]
[342155657,1731514230449,-15439.95,8.163e-05,2]
[342155658,1731514230474,-23900.0,8.183e-05,2]
[342155659,1731514230498,-519.59,8.191e-05,2]
[342155660,1731514230522,-631.59,8.196e-05,2]
[342155661,1731514230546,-150.0,8.218e-05,2]
[342155662,1731514230570,-163.92,8.219e-05,2]
[342155663,1731514230593,-500.0,8.219e-05,2]
[342155664,1731514230619,-500.0,8.219e-05,2]
[342155665,1731514230643,-500.0,8.219e-05,2]
[342155666,1731514230666,-500.0,8.219e-05,2]
[342155667,1731514230689,-500.0,8.219e-05,2]
[342155668,1731514230712,-500.0,8.219e-05,2]
[342155669,1731514230736,-500.0,8.219e-05,2]
[342155670,1731514230760,-450.24186518,8.219e-05,2]
[342155671,1731514230783,-2669.29,8.219e-05,2]
[342155672,1731514230806,-153.45,8.302e-05,2]
[342155673,1731514230829,-200.0,8.314e-05,2]
[342155674,1731514230853,-239.09,8.342e-05,3]
[342155675,1731514230880,-250.0,8.405e-05,2]
[342155676,1731514230906,-179.77,8.501e-05,2]
[342155677,1731514230931,-1787.95,8.529e-05,2]
[342155678,1731514230957,-179.77,8.543e-05,2]
[342155679,1731514230981,-167.0,8.579e-05,2]
[342155680,1731514231005,-2000.0,8.619e-05,2]
[342155681,1731514231028,-889.04,8.664e-05,2]
[342155682,1731514231051,-162.3,8.664e-05,2]
[342155683,1731514231076,-172.16,8.727e-05,2]
[342155684,1731514231100,-250.0,8.761e-05,2]
[342155685,1731514231128,-6280.84,8.767e-05,2]
[342155686,1731514231153,-2876.25,8.829e-05,2]
[342155687,1731514231177,-855.45,8.848e-05,2]
[342155688,1731514231202,-500.0,8.869e-05,2]
[342155689,1731514231227,-420.0,8.966e-05,2]
[342155690,1731514231250,-153.45,8.994e-05,2]
[342155702,1731514231569,-178.17,8.996e-05,2]
[342155703,1731514231579,-255.0,9.04e-05,2]
[342155704,1731514231588,-1000.0,9.04e-05,2]
[342155705,1731514231598,-167.0,9.051e-05,2]
[342155706,1731514231607,-167.48,9.064e-05,2]
[342155707,1731514231620,-462.71,9.078e-05,2]
[342155708,1731514231629,-2706.09,9.101e-05,2]
[342155709,1731514231638,-688.18,9.26e-05,2]
[342155710,1731514231649,-70.73992318,9.399e-05,2]
[342155711,1731514231661,-119.12765466,9.399e-05,2]
[342155712,1731514231671,-2566.83,9.433e-05,2]
[342155713,1731514231680,-167.0,9.523e-05,2]
[342155714,1731514231689,-1376.1157,9.644e-05,2]
[342155715,1731514231698,-286.75728534,9.67e-05,2]
[342155716,1731514231710,-187.85271466,9.67e-05,2]
[342155717,1731514231719,-785.76,9.67e-05,2]
[342155718,1731514231729,-325.7,9.67e-05,2]
[342155719,1731514231740,-2836.46398534,9.67e-05,2]
[342155720,1731514231767,-1686.41644348,9.67e-05,2]
[342155721,1731514231778,-6573.02957118,9.67e-05,2]
[342155722,1731514231787,-166.66,9.671e-05,2]
[342155723,1731514231796,-153.45,9.686e-05,2]
[342155724,1731514231806,-1275.21,9.8e-05,2]
[342155725,1731514231815,-5741.3175,9.8e-05,2]
[342155726,1731514231825,-9994.2194,9.8e-05,2]
[342155727,1731514231834,-172.16,9.817e-05,2]
[342155728,1731514231844,-587.0,9.862e-05,2]
[342155729,1731514231853,-15964.0615714,9.9e-05,2]
[342155730,1731514231866,-16093.1804286,9.9e-05,2]
[342155731,1731514231876,-15534.4349,9.9e-05,2]
[342155732,1731514231886,-795.6695,9.9e-05,2]
[342155733,1731514231895,-178.8397,9.9e-05,2]
[342155734,1731514231905,-433.0,9.944e-05,2]
[342155735,1731514231915,-214.9591667,9.992e-05,2]
[342155736,1731514231925,-167.0,9.995e-05,2]
[342155737,1731514231934,-74139.62187313,0.0001,2]
[342155738,1731514231960,-1733.15,0.0001,2]
[342155739,1731514232001,-166321.19003885,0.0001,2]
[342155740,1731514232010,-3393.0,0.0001,2]
[342155741,1731514232019,-2677.59509,0.0001,2]
[342155742,1731514232028,-2677.59509,0.0001,2]
[342155743,1731514232038,-2677.59508,0.0001,2]
[342155744,1731514232047,-2677.59509,0.0001,2]
[342155745,1731514232056,-2677.59509,0.0001,2]
[342155746,1731514232065,-2677.59508,0.0001,2]
[342155747,1731514232075,-1000.0,0.00010171,2]
[342155748,1731514232084,-433.16,0.00010234,2]
[342155749,1731514232093,-21200.0,0.00010238,2]
[342155750,1731514232103,-426.41767423,0.00010267,2]
[342155751,1731514232115,-369.58,0.00010295,2]
[342155752,1731514232126,-153.45,0.00010378,2]
[342155753,1731514232136,-2669.29,0.00010412,2]